Cogmind - Beta 17 @@@ ROGUE MODE // 2026.07.14 @ 14:32:38 Player: IsAway Result: Self-destructed Performance ------------- Evolutions (1) 500 Regions Visited (2) 400 Robots Destroyed (49) 245 Value Destroyed (943) 943 Prototype IDs (5) 100 Alien Tech Used (0) 0 Bonus (0) 0 TOTAL SCORE: 2188 Bonus ------- None Cogmind --------- Core Integrity 99/400 Matter 288/300 Energy 100/100 System Corruption 15% Temperature Cool (0) Movement Treading (240) Ox1 Location -9/Materials Parts ------- > --- POWER (1) -------- (None) > --- PROPULSION (4) --- Light Treads > --- UTILITY (2) ------ Large Storage Unit Structural Scanner > --- WEAPON (2) ------- Katana > --- INVENTORY (15) --- Nuclear Core Nuclear Core Light Treads Light Treads Light Treads Compact Wheel Compact Wheel Cooling System Small Storage Unit Huge Storage Unit High-capacity Battery (250) Improved Terrain Scanner Advanced EMP Blaster Advanced EMP Blaster Peak State ------------ > --- POWER ------------ Nuclear Core > --- PROPULSION ------- Advanced Treads Advanced Treads Advanced Treads Advanced Treads > --- UTILITY ---------- Huge Storage Unit Structural Scanner > --- WEAPON ----------- Advanced EMP Blaster Advanced EMP Blaster > --- INVENTORY -------- Nuclear Core Nuclear Core Nuclear Core Light Treads Light Treads Light Treads Light Treads Wheel Compact Wheel Compact Wheel Cooling System Small Storage Unit Large Storage Unit High-capacity Battery Sensor Array Signal Interpreter Improved Terrain Scanner Seismic Detector Propulsion Shielding Propulsion Shielding Beam Rifle Light Assault Rifle Advanced EMP Blaster Advanced EMP Blaster [Rating: 29] Favorites ----------- Power Ion Engine Engine Ion Engine Power Core Nuclear Core Propulsion Advanced Treads Treads Advanced Treads Wheel Compact Wheel Hover Unit Backup Propulsion I Utility Huge Storage Unit Device Structural Scanner Storage Huge Storage Unit Weapon EM Pulse Gun Energy Gun EM Pulse Gun Ballistic Gun Light Assault Rifle Launcher Advanced EMP Blaster Special Weapon Mining Laser Impact Weapon Hammer Slashing Weapon Katana Build | -11 -10 -9 ------- Run | Yrd Mat Mat Slots Evolved 2 | . . 2 Power . | . . . Propulsion 2 | . . 2 Utility . | . . . Weapon . | . . . Parts Attached 43 | 8 19 16 Power 5 | 1 2 2 Engine 3 | 1 2 . Core 2 | . . 2 Reactor . | . . . Propulsion 16 | 3 7 6 Treads 7 | 2 . 5 Leg . | . . . Wheel 9 | 1 7 1 Hover . | . . . Flight . | . . . Utility 6 | 2 3 1 Device 3 | 1 2 . Storage 3 | 1 1 1 Processor . | . . . Hackware . | . . . Protection . | . . . Artifact . | . . . Weapon 16 | 2 7 7 Energy Gun 7 | . 5 2 Energy Cannon . | . . . Ballistic Gun 3 | 2 . 1 Ballistic Cannon . | . . . Launcher 3 | . . 3 Special Weapon 1 | . 1 . Impact Weapon 1 | . 1 . Slashing Weapon 1 | . . 1 Piercing Weapon . | . . . Special Melee Weapon . | . . . Unidentified Prototypes 1 | . . 1 Corrupted Parts 3 | . . 3 System Corruption 13 | . . 13 Parts Lost 16 | . 7 9 Power 3 | . 1 2 Propulsion 6 | . 2 4 Utility . | . . . Weapon 7 | . 4 3 Highest Loss Streak 5 | . 5 5 To Critical Strikes . | . . . Average Backups 19 | 4 20 22 Power 2 | . 2 2 Propulsion 5 | 1 5 5 Utility 7 | . 6 8 Weapon 5 | 1 5 4 Tool/Special . | . . . Unused Backups 24 | . 6 18 Power 3 | . . 3 Propulsion 5 | . 3 2 Utility 11 | . 2 9 Weapon 5 | . 1 4 Tool/Special . | . . . Average Slot Usage (%) 96 | . 96 97 Engine 8 | . 13 . Core 3 | . . 10 Treads 16 | . 1 41 Wheel 16 | . 26 1 Device 11 | . 11 11 Storage 13 | . 14 11 Energy Gun 11 | . 13 9 Ballistic Gun 5 | . 7 1 Launcher 2 | . . 6 Special Weapon 1 | . 1 2 Impact Weapon 3 | . 5 . Peak Build Rating 29 | 7 12 29 Average Rating 14 | 5 9 24 On Entrance 5 | . 7 9 Avg Prop Armor Cover (%) . | . . . Naked Turns . | . . . Heaviest Build 100 | 12 91 100 Greatest Support 88 | 40 40 88 Greatest Overweight (x) 8 | . 8 1 Average Overweight (x) 1 | . 2 . Largest Inventory Capacity 25 | 8 25 25 Average Capacity 22 | 7 24 22 Most Carried 25 | 8 25 25 Average Carried 19 | 4 20 21 Final Capacity 25 | 8 25 15 Final Carried 25 | 8 25 14 Class Distribution -------------------- 89% | Mutant 10% | Scavenger-Mutant Dominant Class ---------------- Mutant | -10/Materials Mutant | -9/Materials Resources | -11 -10 -9 ----------- Run | Yrd Mat Mat Matter Collected 917 | 320 304 293 Remotely . | . . . Salvage Created 1536 | 119 794 623 Parts 94 | 9 48 37 Haulers Intercepted 1 | . 1 . Recyclers Shooed 1 | . 1 . Parts Field Recycled . | . . . Retrieved Matter . | . . . Parts Self-Destructed . | . . . Prevented . | . . . Parts Restored . | . . . Kills | -11 -10 -9 ------- Run | Yrd Mat Mat Combat Hostiles Destroyed 25 | . 15 10 Melee 1 | . . 1 Guns 20 | . 15 5 AOE 4 | . . 4 Classes Destroyed 11 | 2 7 2 Worker 3 | . 2 1 Builder 1 | . 1 . Tunneler 5 | 4 1 . Hauler 1 | . 1 . Recycler 6 | 1 3 2 Operator 2 | . 1 1 Watcher 6 | . 3 3 Swarmer 12 | . 9 3 Grunt 8 | . 6 2 Duelist 2 | . . 2 Sentry 3 | . . 3 Best Kill Streak 7 | 4 5 7 Combat Bots Only 3 | . 3 3 Max Kills in Single Turn 2 | 1 2 2 Gunslinging 1 | . 1 . Exploded 2 | . . 2 Melee 1 | . . 1 Uniques/NPCs Destroyed . | . . . Combat | -11 -10 -9 -------- Run | Yrd Mat Mat Hostile Shots Fired 276 | . 116 160 Missed 75 | . 33 42 Hits 201 | . 83 118 Melee 8 | . . 8 Projectile 193 | . 83 110 Critical Strikes 4 | . 1 3 Damage Taken 2362 | . 767 1595 Core 469 | . 168 301 Absorbed by Shields . | . . . Core Remaining (%) 66 | 100 32 . Volleys Fired 121 | 10 63 48 Largest 2 | 2 2 2 Hottest 120 | 40 120 112 Shots Fired 217 | 20 114 83 Gun 200 | 20 109 71 Cannon . | . . . Launcher 10 | . . 10 Special 7 | . 5 2 Kinetic 82 | 20 39 23 Thermal 77 | . 34 43 Explosive . | . . . Electromagnetic 58 | . 41 17 Robot Hit Streak 8 | 6 5 8 Robot Miss Streak 11 | 2 11 5 Penetration Max . | . . . Secondary Targets 5 | . 5 . Max Gunslinging Chain 1 | . 1 . Shots Hit Robots 119 | 12 54 53 Core Hits 62 | 6 33 23 Critical Kills . | . . . Critical Parts Destroyed . | . . . Critical Strikes 5 | . 2 3 Burn 3 | . 1 2 Corrupt 1 | . 1 . Sever 1 | . . 1 Melee Attacks 36 | . 23 13 Impact 23 | . 23 . Slashing 13 | . . 13 Piercing . | . . . Sneak Attacks 2 | . 2 . Combat Hostiles . | . . . Follow-up Attacks . | . . . Damage Inflicted 2455 | 145 1027 1283 Guns 1441 | 145 780 516 Cannons . | . . . Explosions 710 | . 157 553 Melee 304 | . 90 214 Ramming . | . . . Kinetic 521 | 145 244 132 Thermal 722 | . 391 331 Explosive 40 | . . 40 Electromagnetic 868 | . 302 566 Impact 90 | . 90 . Slashing 214 | . . 214 Piercing . | . . . Highest Corruption 15 | . . 15 Average Corruption 6 | . . 6 Corruption Purged . | . . . Corruption Blocked . | . . . Effects 11 | . . 11 Message Errors 5 | . . 5 Matter Fused 1 | . . 1 Heat Flow Errors 1 | . . 1 Parts Rejected 2 | . . 2 Data Loss (minor) 1 | . . 1 Data Loss (major) 1 | . . 1 Overload Shots . | . . . Overflow Damage 41 | . 36 5 Projectiles . | . . . Explosions 25 | . 20 5 Melee 16 | . 16 . Knockbacks 1 | . 1 . Impact 1 | . 1 . Kinetic . | . . . Secondary . | . . . Self-Inflicted Damage 102 | . . 102 Shots 6 | . . 6 Rammed . | . . . Targets Rammed . | . . . Kicked . | . . . Crushed . | . . . Highest Temperature 317 | . 80 317 Average Temperature 66 | . 16 88 Received Heat Transfer 660 | . 213 447 Siege Activations . | . . . Martial Activations . | . . . Shielding Activations . | . . . Robots Disrupted . | . . . Combat Hostiles . | . . . Robots Corrupted 1 | . 1 . Combat Hostiles . | . . . Parts Fried 7 | . 5 2 Impact Corruptions 1 | . 1 . Robots Melted . | . . . Combat Hostiles . | . . . Parts Melted 3 | . 1 2 Heat Transferred 1728 | . 729 999 Parts Sabotaged . | . . . Parts Stolen . | . . . Parts Stripped . | . . . Power Chain Reactions 3 | . 3 . Alert | -11 -10 -9 ------- Run | Yrd Mat Mat Maximum Alert Level . | . . . Low Security (%) 100 | 100 100 100 Level 1 . | . . . Level 2 . | . . . Level 3 . | . . . Level 4 . | . . . Level 5 . | . . . High Security . | . . . Max Security . | . . . Peak Influence 196 | 10 185 196 Initial 16 | . . 16 Average 76 | 1 82 80 Influence Increases 1032 | 25 513 494 Destroy 0b10 Robot/C 500 | . 300 200 Destroy 0b10 Robot/NC 120 | 25 60 35 Destroy Leader 124 | . 58 66 Successful Hack 31 | . 16 15 Disable Machine 150 | . 45 105 Destroy Structure 62 | . 19 43 Lose Combat Pursuer 45 | . 15 30 Influence Decreases 923 | 25 474 424 Entered New Map 23 | . . 23 Time Decay 740 | 25 404 311 Lost Part 160 | . 70 90 Squads Dispatched 2 | . 1 1 Investigation 1 | . 1 . Extermination . | . . . Reinforcement 1 | . . 1 Assault . | . . . Garrison . | . . . Intercept . | . . . Searches Triggered . | . . . Construction Impeded . | . . . Haulers Reinforced . | . . . Active Scanning Responses . | . . . Cargo Convoy Interrupts . | . . . Stealth | -11 -10 -9 --------- Run | Yrd Mat Mat Distress Signals 5 | . 3 2 Communications Jammed . | . . . Distress Signals . | . . . Times Spotted 49 | . 24 25 Peak Tracking Total 6 | . 5 6 Tactical Retreats 2 | . 1 1 Traps | -11 -10 -9 ------- Run | Yrd Mat Mat Traps Triggered 2 | . 1 1 Indirectly 1 | . . 1 Trap Hack Attempts . | . . . Triggered . | . . . Disarmed . | . . . Reprogrammed . | . . . Reused . | . . . Traps Extracted . | . . . Installed . | . . . Triggered . | . . . Machines | -11 -10 -9 ---------- Run | Yrd Mat Mat Machines Disabled 10 | . 3 7 Max in Single Turn 2 | . 1 2 Machines Repaired . | . . . Machines Dismantled . | . . . Machines Sabotaged . | . . . Overloaded Fab Kills . | . . . Hacking | -11 -10 -9 --------- Run | Yrd Mat Mat Machines Accessed 14 | . 10 4 Terminals 10 | . 7 3 Fabricators . | . . . Repair Stations 1 | . 1 . Recycling Units 2 | . 2 . Scanalyzers 1 | . . 1 Garrison Access . | . . . Total Hacks 41 | . 25 16 Successful 15 | . 7 8 Failed 26 | . 18 8 Catastrophic 5 | . 4 1 Database Lockouts . | . . . Manual 7 | . 4 3 Terminals 27 | . 19 8 Fabricators . | . . . Repair Stations 3 | . 3 . Recycling Units 3 | . 3 . Scanalyzers 8 | . . 8 Garrison Access . | . . . Terminal Hacks 7 | . 4 3 Part Schematic 1 | . . 1 Prototype ID Bank 2 | . 2 . Emergency Access Points 1 | . . 1 Registered Components 1 | . 1 . Zone Layout 2 | . 1 1 Fabricator Hacks . | . . . Repair Station Hacks 1 | . 1 . Refit 1 | . 1 . Recycling Unit Hacks 2 | . 2 . Report Inventory 1 | . 1 . Retrieve Components 1 | . 1 . Scanalyzer 5 | . . 5 Insert Component 3 | . . 3 Analyze 2 | . . 2 Garrison Access Hacks . | . . . Unauthorized Hacks . | . . . Terminals . | . . . Fabricators . | . . . Repair Stations . | . . . Recycling Units . | . . . Scanalyzers . | . . . Garrison Access . | . . . Data Cores Recovered 1 | . 1 . Used 1 | . 1 . Hacking Detections 14 | . 10 4 Full Trace Events 1 | . . 1 Feedback Events . | . . . Feedback Blocked . | . . . Robot Schematics Acquired . | . . . Robots Built . | . . . Authchips . | . . . Time . | . . . Total Robot Build Rating . | . . . Part Schematics Acquired 3 | . . 3 Parts Built . | . . . Authchips . | . . . Time . | . . . Total Part Build Rating . | . . . Part Studies Acquired . | . . . Parts Repaired . | . . . Time . | . . . Parts Recycled . | . . . Recycled Matter . | . . . Retrieved Matter . | . . . Retrieved Components 3 | . 3 . Parts Scanalyzed 3 | . . 3 Part Schematics Acquired 2 | . . 2 Parts Damaged . | . . . Bothacking | -11 -10 -9 ------------ Run | Yrd Mat Mat Used RIF Installer . | . . . Robots Hacked . | . . . Non-combat . | . . . Combat . | . . . Robot Hacks Applied . | . . . Relay Couplers Released . | . . . Fabnet Peak Effective % . | . . . Robots Rewired . | . . . Allies Hacked . | . . . Hacks Repelled . | . . . Allies | -11 -10 -9 -------- Run | Yrd Mat Mat Total Allies . | . . . Largest Group . | . . . Highest-Rated Group . | . . . Highest-Rated Ally . | . . . Total Orders . | . . . Ally Attacks . | . . . Total Damage . | . . . Kills . | . . . Allies Corrupted . | . . . Allies Melted . | . . . Intel | -11 -10 -9 ------- Run | Yrd Mat Mat Active Infowar (turns) 1083 | 21 474 588 Structural 1062 | . 474 588 Seismic 21 | 21 . . Robot Analysis Total . | . . . Derelict Logs Recovered . | . . . Drone Launches . | . . . Drone Recoveries . | . . . Exploration | -11 -10 -9 ------------- Run | Yrd Mat Mat Turns Passed 2215 | 153 1300 762 Spaces Moved 1050 | 70 717 263 Core 3 | 3 . . Treads 357 | 65 33 259 Legs . | . . . Wheels 690 | 2 684 4 Hover . | . . . Flight . | . . . Fastest Speed 50 | 50 130 105 Average Speed 152 | 153 134 200 Slowest Speed 236 | 160 200 236 Overloaded Moves . | . . . Propulsion Burnouts . | . . . Robots Hopped . | . . . Potential Cave-ins . | . . . Cave-ins Triggered . | . . . Exploration Rate (%) 45 | 4 96 36 Regions Visited 2 Branch Regions . Pre-discovered Areas . | . . . Known Exits Taken . | . . . Unknown Exits Taken 2 | 1 1 . Scrap Searched . | . . . Spaces Dug 14 | . 12 2 Terrain Destroyed 71 | . 17 54 Melee 12 | . 12 . Projectile 2 | . . 2 AOE 57 | . 5 52 Terrain Rammed . | . . . Walls Destroyed . | . . . Machines Disabled . | . . . Actions | -11 -10 -9 --------- Run | Yrd Mat Mat Total 1391 | 95 893 403 Wait 25 | . 14 11 Move 1048 | 69 716 263 Hop . | . . . Pick Up 54 | 6 35 13 Fast Attach 18 | 8 4 6 Attach 19 | . 9 10 Detach 5 | 2 . 3 Swap 23 | . 12 11 Drop 42 | . 17 25 Fire 121 | 10 63 48 Melee 36 | . 23 13 Ram . | . . . Kick . | . . . Crush . | . . . Escape Stasis . | . . . Rewire . | . . . Trap . | . . . Miscellaneous . | . . . Route ------- -11/Scrapyard -10/Materials (discovered 6 exits: *Mat x3 / [*Min x2] / [Sub]) -9/Materials (discovered 1 exit: [*Min]) History --------- Turn | Location | Event 17 | -11/Scrapyard | Discovered new exit (range 16) 154 | -11/Scrapyard | Entered Materials 300 | -10/Materials | Build established: Mutant 324 | -10/Materials | Discovered new exit (range 15) 506 | -10/Materials | Discovered new exit (range 5) 749 | -10/Materials | Core integrity fell below 50% 777 | -10/Materials | Lost 5 parts (1p1n3w) 963 | -10/Materials | Discovered new exit (range 6) 987 | -10/Materials | Discovered new exit (range 12) 1094 | -10/Materials | Discovered new exit (range 5) 1358 | -10/Materials | Discovered new exit (range 6) 1454 | -10/Materials | Entered another Materials area 1454 | -9/Materials | Evolved 2 slots: Propulsion x2 1873 | -9/Materials | Discovered new exit (range 16) 1990 | -9/Materials | System corruption reached 10% 2191 | -9/Materials | Core integrity fell below 50% 2216 | -9/Materials | Self-destructed Last Messages --------------- K-01 Serf destroyed. System corrupted: Adv. Treads rejected. K-01 Serf collects debris. Acquired Adv. Treads. ALERT: Hostiles spotted, dispatching reinforcements to Terminal M012. Beam Rifle destroyed. K-01 Serf collects debris. Beam Rifle severed. Integrated Corrupted Katana (+5). Adv. Treads destroyed. K-01 Serf collects debris. L-31 Rogue Imp. Aluminum Leg severed. Adv. Treads destroyed. L-31 Rogue destroyed. Acquired Beam Rifle. K-01 Serf collects debris. System corrupted: Beam Rifle rejected. K-01 Serf collects debris. Nuclear Core destroyed. Map ----- +----------------------------------------------------+ | !########"####+## # #??????????????????? | | ## ## # #??????????????????? | | ## " """"" ## # #??????????????????? | | ## """"""""" ## # #??????????????????? | | ## """ """ ## #######??????????????????? | | [## ## ## #??????????????????? | | %########+####### # #??????????????????? | | =!# ? ###### # #??????????????????? | | # ? + #??????????????????? | | # # #??????????????????? | | ]# = # #??????????????????? | | # %### #??????????????????? | | !#?# #??????????????????? | | #?# #??????????????????? | | * ############ ###########???????????????? | | %= #####????###k###########???????????????? | | = ##???????## ##???????????????? | | = ##???????## ##???????????????? | | % ##???????## # ???????????????? | | ##???????## + ???????????????? | | # ??????? # # ???????????????? | | # ??????? # = ##???????????????? | | # ??????? # ##???????????????? | | ? # ??????? ##+####/##########???????????? | | ? ???????????? # ###g##########???? ##????? | | ???????????????????## @ gg ##????? | | ##???????????????????##!=! ##????? | | ##???????????????????## % "T" ##????? | | ?????????????????????##k # ????? | | ?????????????????????## ???????????? | | ?????????????????????##g " !![ ??????????? | | ?????????????????????##g "" !![ ?????????? | | ????????????????????? """ ![ ????????? | | ?????????????????????? ### ????????? | | ????????????????????? ? ### ????????? | | ????????????????????? ! ? ]![ ##??????????? | | ????????????????????? ??!![ ##??????????? | | ???????????????????? ???! ##??????????? | | ???????????????????? ! a ???? ##??????????? | | ????????????????????? k ?????????????????????? | | ??????????????????????? ??????????????????????? | | ??????????????????????????????????????????????? | | ??????????????????????????????????????????????? | | ??????????????????????????????????????????????? | | ??????????????????????????????????????????????? | | ??????????????????????????????????????????????? | | ??????????????????????????????????????????????? | | ??????????????????????????????????????????????? | | ??????????????????????????????????????????????? | | ??????????????????????????????????????????????? | +----------------------------------------------------+ Best States ------------- Heat Dissipation 39 Energy Generation 14 Energy Capacity 250 Matter Stores 300 Matter Capacity 300 Sight Range 16 Terrain Scan Density 10 Evasion (%) 40 Recoil Reduction 4 Item Schematics ----------------- Imp. Treads | -9/Materials | Hacked Adv. EMP Blaster | -9/Materials | Scanalyzed Adv. Treads | -9/Materials | Scanalyzed Robot Schematics ------------------ None Fabricated ------------ Nothing Repaired ---------- Nothing Studied --------- None Alien Tech Used ----------------- None Achievements -------------- None Challenges ------------ None Game ------ Seed PulsarStrikeShredder Manual? 0 Play Time 00:37:54 Cumulative 38.1 hours Start 2026.07.14 @ 13:46:16 End 2026.07.14 @ 14:32:38 Sessions 1 Manual Loads 0 Difficulty Rogue Special Mode None Game No. 51 Rogue 51 Adventurer 0 Explorer 0 Win Type - Total 0 Types 0/0/0/0/0/0/0/0/0/0 Lore% 38 Gallery% 28 Achievement% 26 Wizard Run 0 Options --------- Layout 1 ASCII 0 Keyboard 0 Movement Mouse Keybinds 0 Fullscreen 2 Font 18/SmallcapsGlow Map View 51x41 Zoom Use 0% Tactical HUD 0 Map Filters NONE Filters NONE Steam 1 RUN: 7cb41641-c609-48a4-a4e5-b9c15fb1a729